bitfinex-derivatives/quotes_BNBF0:USTF0_20250907
["timestamp","ask_amount","ask_price","bid_price","bid_amount"]
[1757282705205,0.19873052,877.48,876.27,0.73344611]
[1757282705410,0.19873052,877.48,876.25,1.542127]
[1757282705611,0.19873052,877.48,876.26,0.73335004]
[1757282705811,0.19873052,877.48,876.27,0.53335004]
[1757282706108,0.19873052,877.48,876.24,1.542127]
[1757282706712,0.19873052,877.48,876.23,1.542127]
[1757282709013,0.19873052,877.48,875.52,2.5692586]
[1757282709014,0.19873052,877.48,876.27,1.542127]
[1757282709811,0.19873052,877.48,876.25,1.542127]
[1757282714816,0.19873052,877.48,876.19,1.542127]
[1757282715221,0.19873052,877.48,876.16,1.342127]
[1757282715421,1.5429915,877.83,875.14,3.5969621]
[1757282716018,1.5429915,877.82,875.14,3.5969621]
[1757282716220,1.5429915,877.84,875.12,2.5692586]
[1757282717320,1.5429915,877.77,875.01,2.5692586]
[1757282717615,1.5429915,877.75,875.01,2.5692586]
[1757282717816,1.5429915,877.72,875.09,2.5692586]
[1757282718018,1.5429915,877.72,875.1,0.7247496]
[1757282718321,0.19883555,877.07,875.11,0.7247496]
[1757282718522,0.19883555,877.07,875.12,0.7247496]
[1757282718720,0.19883555,877.07,875.13,0.7247496]
[1757282718919,0.19883555,877.07,875.08,2.5692586]
[1757282718920,0.19883555,877.07,875.14,0.7247496]
[1757282719121,0.19883555,877.07,875.15,0.7247496]
[1757282719318,0.19883555,877.07,875.16,0.7247496]
[1757282719518,0.19883555,877.07,875.17,0.7247496]
[1757282719718,0.19883555,877.07,875.18,0.7247496]
[1757282719921,0.19883555,877.07,875.19,0.7247496]
[1757282720119,0.19883555,877.07,875.2,0.7247496]
[1757282720318,0.19883555,877.07,875.21,0.7247496]
[1757282720519,0.19883555,877.07,874.91,1.825]
[1757282720520,0.19883555,877.07,875.22,0.7247496]
[1757282720817,0.19883555,877.07,875.23,0.7247496]
[1757282721023,0.19883555,877.07,875.24,0.7247496]
[1757282721217,0.19883555,877.07,875.25,0.7247496]
[1757282721419,0.19883555,877.07,875.26,0.7247496]
[1757282721619,0.19883555,877.07,875.27,0.7247496]
[1757282721819,0.19883555,877.07,875.28,0.7247496]
[1757282722020,0.19883555,877.07,875.29,0.7247496]
[1757282722223,0.19883555,877.07,875.3,0.7247496]
[1757282722425,0.19883555,877.07,875.31,0.7247496]
[1757282722625,0.19883555,877.07,875.32,0.7247496]
[1757282722826,0.19883555,877.07,875.33,0.7247496]
[1757282723131,0.19883555,877.07,875.34,0.7247496]
[1757282723331,0.19883555,877.07,875.35,0.7247496]
[1757282723529,0.19883555,877.07,875.36,0.7247496]
[1757282723727,0.19883555,877.07,875.37,0.7247496]
[1757282723930,0.19883555,877.07,875.38,0.7247496]
[1757282724231,0.19883555,877.07,875.39,0.7247496]
[1757282724431,0.19883555,877.07,875.4,0.7247496]
[1757282724626,0.19883555,877.07,875.41,0.7247496]
[1757282724827,0.19883555,877.07,875.42,0.7247496]
[1757282725127,0.19883555,877.07,875.43,0.7247496]
[1757282725330,0.19883555,877.07,875.44,0.7247496]
[1757282725528,0.19883555,877.07,875.45,0.7247496]
[1757282725730,0.19883555,877.07,875.46,0.7247496]
[1757282725931,0.19883555,877.07,875.47,0.7247496]
[1757282726129,0.19883555,877.07,875.48,0.7247496]
[1757282726334,0.19883555,877.07,875.49,0.7247496]
[1757282726531,0.19883555,877.07,875.5,0.7247496]
[1757282726736,0.19883555,877.07,875.51,0.7247496]
[1757282727033,0.19883555,877.07,875.52,0.7247496]
[1757282727233,0.19883555,877.07,875.53,0.7247496]
[1757282727436,0.19883555,877.07,875.54,0.7247496]
[1757282727635,0.19883555,877.07,875.55,0.7247496]
[1757282727833,0.19883555,877.07,875.56,0.7247496]
[1757282728133,0.19883555,877.07,875.57,0.7247496]
[1757282728333,0.19883555,877.07,875.58,0.7247496]
[1757282728536,0.19883555,877.07,875.59,0.7247496]
[1757282728734,0.19883555,877.07,875.6,0.7247496]
[1757282728933,0.19883555,877.07,875.61,0.7247496]
[1757282729137,0.19883555,877.07,875.62,0.7247496]
[1757282729438,0.19883555,877.07,875.63,0.7247496]
[1757282729733,0.19883555,877.07,875.96,1.0220474]
[1757282730732,0.19883555,877.07,875.96,0.8277474]
[1757282735537,0.19883555,877.07,875.96,2.3608976]
[1757282736735,0.19883555,877.07,875.96,0.8277474]
[1757282737341,0.19883555,877.07,875.97,0.72088774]
[1757282737540,0.19883555,877.07,875.93,1.5331502]
[1757282737745,0.19883555,877.07,875.94,0.72088781]
[1757282737940,0.19883555,877.07,875.95,0.72088781]
[1757282738141,0.19883555,877.07,875.96,0.72088781]
[1757282738437,0.19883555,877.07,875.97,0.72088781]
[1757282738641,0.19883555,877.07,875.92,1.5331502]
[1757282738842,0.19883555,877.07,875.93,0.72097301]
[1757282739041,0.19883555,877.07,875.97,0.76678409]
[1757282739440,0.19883555,877.07,875.96,0.76678409]
[1757282741943,0.19883555,877.07,875.97,1.4880962]
[1757282742138,0.19883555,877.07,875.97,0.76678409]
[1757282743041,0.19883555,877.07,875.96,0.76678409]
[1757282747646,0.19883555,877.07,875.97,1.48897934]
[1757282747843,0.19883555,877.07,875.97,0.76678409]
[1757282748245,0.19883555,877.07,875.97,0.57258409]
[1757282754147,0.19883555,877.07,875.98,0.72083014]
[1757282754451,0.19883555,877.07,875.99,0.52653014]
[1757282754746,0.19883555,877.07,875.67,1.5331502]
[1757282755950,0.19883555,877.07,875.68,1.5331502]
[1757282757354,0.19883555,877.07,875.82,1.5331502]
[1757282757956,0.19883555,877.07,875.86,1.5331502]
[1757282758452,0.19883555,877.07,875.99,1.5331502]
[1757282759250,0.19883555,877.07,876.0,1.5331502]
[1757282759952,0.19883555,877.07,876.06,1.5331502]
[1757282760456,0.19883555,877.07,876.09,1.5331502]
[1757282760652,0.19883555,877.07,876.09,2.5590254]
[1757282760855,0.19883555,877.07,876.1,1.0258752]
[1757282761052,0.19883555,877.07,876.11,1.0258752]
[1757282761355,0.19883555,877.07,876.12,2.5590254]
[1757282762652,0.19883555,877.07,876.12,1.0258752]
[1757282762852,0.19883555,877.07,876.21,1.0258752]
[1757282764456,0.19883555,877.07,876.24,1.0258752]
[1757282765357,0.19883555,877.07,876.24,0.8315752]
[1757282765656,0.19883555,877.07,876.23,1.5331502]
[1757282765858,0.19883555,877.07,876.22,1.5331502]
[1757282770258,0.19883555,877.07,876.24,1.5331502]
[1757282770557,0.19883555,877.07,876.27,1.5331502]
[1757282772357,0.19883555,877.07,876.28,1.5331502]
[1757282772659,0.19883555,877.07,875.57,2.5692586]
[1757282772660,0.19883555,877.07,876.29,1.5331502]
[1757282773455,0.19883555,877.07,875.61,2.5692586]
[1757282773456,0.19883555,877.07,876.28,1.5331502]
[1757282773956,0.19883555,877.07,876.27,1.5331502]
[1757282774153,0.19883555,877.07,876.34,1.5331502]
[1757282774356,0.19883555,877.07,876.33,1.5331502]
[1757282774657,0.19883555,877.07,875.63,2.5692586]
[1757282774858,0.19883555,877.07,875.62,2.5692586]
[1757282775658,0.19883555,877.07,875.61,2.5692586]
[1757282776455,0.19883555,877.07,875.6,2.5692586]
[1757282777461,0.19883555,877.07,875.59,2.5692586]
[1757282778563,0.19883555,877.07,875.57,2.5692586]
[1757282779066,0.19883555,877.07,875.55,2.5692586]
[1757282780765,0.19883555,877.07,875.0,1.397]
[1757282784872,0.19883555,877.07,875.01,2.5692586]
[1757282787473,0.19883555,877.07,875.0,3.9662586]
[1757282789370,0.19883555,877.07,875.01,2.5692586]
[1757282790570,0.19883555,877.07,875.55,2.5692586]
[1757282790972,0.19883555,877.07,875.56,2.5692586]
[1757282791477,0.19883555,877.07,875.55,2.5692586]
[1757282791973,0.19883555,877.07,875.48,2.5692586]
[1757282792574,0.19883555,877.07,875.61,2.5692586]
[1757282794575,0.19883555,877.07,876.38,1.5337475]
[1757282795375,0.19883555,877.07,876.49,1.0224642]
[1757282795878,0.19883555,877.07,876.49,0.8281642]
[1757282800090,0.19883555,877.07,876.33,1.5337475]
[1757282801791,0.19883555,877.07,876.35,1.5337475]
[1757282801998,0.19883555,877.07,876.36,1.5337475]
[1757282806498,0.19883555,877.07,876.42,1.5337475]
[1757282808105,0.19883555,877.07,876.45,1.5337475]
[1757282808304,0.19883555,877.07,876.5,0.76736571]
[1757282809404,0.19883555,877.07,876.5,0.56736571]
[1757282809704,0.19883555,877.07,876.5,2.10111321]
[1757282813598,0.19883555,877.07,876.5,0.56736571]
[1757282814905,0.19883555,877.07,876.27,1.5337475]
[1757282815106,0.19883555,877.07,876.24,1.5337475]
[1757282815409,0.19883555,877.07,876.2,1.5337475]
[1757282816405,0.19883555,877.07,876.34,1.5337475]
[1757282817306,0.19883555,877.07,876.28,1.5337475]
[1757282818009,0.19883555,877.07,876.29,1.5337475]
[1757282818209,0.19883555,877.07,876.3,1.5337475]
[1757282819306,0.19883555,877.07,876.32,1.5337475]
[1757282820811,0.19883555,877.07,876.26,1.5337475]
[1757282821313,0.19883555,877.07,876.28,1.5337475]
[1757282822310,0.19883555,877.07,876.29,1.5337475]
[1757282825408,0.19883555,877.07,876.3,1.5337475]
[1757282825813,0.19883555,877.07,876.32,1.0270667]
[1757282827116,0.19883555,877.07,876.32,2.5608142]
[1757282832722,0.19883555,877.07,876.33,2.5608142]
[1757282833020,0.19883555,877.07,876.34,2.5608142]
[1757282834318,0.19883555,877.07,876.34,2.3608142]
[1757282835121,0.19883555,877.07,876.33,1.5337475]
[1757282840522,0.19883555,877.07,876.31,1.5337475]
[1757282841020,0.19883555,877.07,876.3,1.5337475]
[1757282853130,0.19883555,877.07,876.3,1.3337475]
[1757282859638,0.19883555,877.07,876.31,0.72885107]
[1757282859934,0.19883555,877.07,876.32,0.72884486]
[1757282860135,0.19883555,877.07,875.91,2.5692586]
[1757282860334,0.19883555,877.07,875.92,0.72888378]
[1757282860639,0.19883555,877.07,875.93,0.72888378]
[1757282860936,0.19883555,877.07,875.94,0.72888378]
[1757282861135,0.19883555,877.07,875.95,0.72888378]
[1757282861335,0.19883555,877.07,875.96,0.72888378]
[1757282861537,0.19883555,877.07,875.97,0.72888378]
[1757282861837,0.19883555,877.07,875.98,0.72888378]
[1757282862037,0.19883555,877.07,875.99,0.72888378]
[1757282862334,0.19883555,877.07,876.0,0.72888378]
[1757282862540,0.19883555,877.07,876.01,0.72888378]
[1757282862739,0.19883555,877.07,876.02,0.72888378]
[1757282862941,0.19883555,877.07,876.03,0.72888378]
[1757282863138,0.19883555,877.07,876.04,0.72888378]
[1757282863343,0.19883555,877.07,876.05,0.72888378]
[1757282863539,0.19883555,877.07,876.06,0.72888378]
[1757282863740,0.19883555,877.07,876.07,0.72888378]
[1757282863938,0.19883555,877.07,876.08,0.72888378]
[1757282864140,0.19883555,877.07,876.09,0.72888378]
[1757282864343,0.19883555,877.07,876.1,0.72888378]
[1757282864543,0.19883555,877.07,876.31,1.0275266]
[1757282869643,0.19883555,877.07,876.31,1.79860309]
[1757282870547,0.19883555,877.07,876.32,0.7296154]
[1757282870744,0.19883555,877.07,876.32,1.79860309]
[1757282871548,0.19883555,877.07,876.32,1.59860309]
[1757282871743,0.19883555,877.07,876.37,1.0275266]
[1757282873048,0.19883555,877.07,876.37,2.5703758]
[1757282879054,0.19883555,877.07,876.41,2.5703758]
[1757282879251,0.19883555,877.07,876.46,1.0275266]
[1757282879454,0.19883555,877.07,876.46,2.3703758]
[1757282884361,0.19883555,877.07,876.46,0.8275266]
[1757282885857,0.19883555,877.07,876.48,1.5428492]
[1757282886057,0.19883555,877.07,876.49,0.72533036]
[1757282886261,0.19883555,877.07,876.47,1.5428492]
[1757282886460,0.19883555,877.07,876.48,0.72533041]
[1757282886663,0.19883555,877.07,876.49,0.72533041]
[1757282886863,0.19883555,877.07,876.47,1.5428492]
[1757282887063,0.19883555,877.07,876.48,0.72533041]
[1757282887257,0.19883555,877.07,876.49,0.72533041]
[1757282887457,0.19883555,877.07,876.5,0.72522739]
[1757282887660,0.19883555,877.07,876.51,0.72519698]
[1757282887860,0.19883555,877.07,876.52,0.72519698]
[1757282888059,0.19883555,877.07,876.53,0.72519698]
[1757282888259,0.19883555,877.07,876.54,0.72519698]
[1757282888461,0.19883555,877.07,876.55,0.72519698]
[1757282888659,0.19883555,877.07,876.5,1.5428492]
[1757282888962,0.19883555,877.07,876.51,0.72502619]
[1757282889262,0.19883555,877.07,876.52,0.72502619]
[1757282889463,0.19883555,877.07,876.53,0.72502619]
[1757282889664,0.19883555,877.07,876.54,0.72502619]
[1757282889864,0.19883555,877.07,876.55,0.72502619]
[1757282890063,0.19883555,877.07,876.49,1.5428492]
[1757282890265,0.19883555,877.07,876.5,0.72487233]
[1757282890465,0.19883555,877.07,876.51,0.72487233]
[1757282890765,0.19883555,877.07,876.52,0.72487233]
[1757282890964,0.19883555,877.07,876.48,1.5428492]
[1757282890965,0.19883555,877.07,876.53,0.72487233]
[1757282891162,0.19883555,877.07,876.54,0.72487233]
[1757282891366,0.19883555,877.07,876.55,0.72487233]
[1757282891666,0.19883555,877.07,876.47,1.5428492]
[1757282891865,0.19883555,877.07,876.48,0.72464767]
[1757282892064,0.19883555,877.07,876.55,1.5428492]
[1757282893169,0.19883555,877.07,876.55,1.3428492]
[1757282894966,0.19883555,877.07,875.86,2.5692586]
[1757282895170,0.19883555,877.07,875.87,0.72218011]
[1757282895370,0.19883555,877.07,875.97,2.5692586]
[1757282895666,0.19883555,877.07,875.98,0.72218011]
[1757282895866,0.19883555,877.07,875.99,0.72218011]
[1757282896171,0.19883555,877.07,876.0,0.72218011]
[1757282896369,0.19883555,877.07,876.01,0.72218011]
[1757282896568,0.19883555,877.07,876.02,0.72218011]
[1757282896764,0.19883555,877.07,876.03,0.72218011]
[1757282896969,0.19883555,877.07,876.04,0.72218011]
[1757282897269,0.19883555,877.07,876.05,0.72218011]
[1757282897469,0.19883555,877.07,876.06,0.72218011]
[1757282897669,0.19883555,877.07,876.07,0.72218011]
[1757282897870,0.19883555,877.07,876.08,0.72218011]
[1757282898066,0.19883555,877.07,876.09,0.72218011]
[1757282898267,0.19883555,877.07,876.1,0.72218011]
[1757282898469,0.19883555,877.07,876.11,0.72218011]
[1757282898766,0.19883555,877.07,876.12,0.72218011]
[1757282898969,0.19883555,877.07,876.13,0.72218011]
[1757282899168,0.19883555,877.07,876.14,0.72218011]
[1757282899472,0.19883555,877.07,876.15,0.72218011]
[1757282899672,0.19883555,877.07,876.16,0.72218011]
[1757282899968,0.19883555,877.07,876.17,0.72218011]
[1757282900170,0.19883555,877.07,876.18,0.72218011]
[1757282900470,0.19883555,877.07,876.19,0.72218011]
[1757282900671,0.19883555,877.07,876.2,0.72218011]
[1757282900871,0.19883555,877.07,876.21,0.72218011]
[1757282901072,0.19883555,877.07,876.22,0.72218011]
[1757282901272,0.19883555,877.07,876.23,0.72218011]
[1757282901569,0.19883555,877.07,876.24,0.72218011]
[1757282901872,0.19883555,877.07,876.25,0.72218011]
[1757282902070,0.19883555,877.07,876.26,0.72218011]
[1757282902275,0.19883555,877.07,876.27,0.72218011]
[1757282902569,0.19883555,877.07,876.28,0.72218011]
[1757282902769,0.19883555,877.07,876.29,0.72218011]
[1757282902973,0.19883555,877.07,876.3,0.72218011]
[1757282903171,0.19883555,877.07,876.31,0.72218011]
[1757282903371,0.19883555,877.07,876.32,0.72218011]
[1757282903569,0.19883555,877.07,876.33,0.72218011]
[1757282903773,0.19883555,877.07,876.34,0.72218011]
[1757282903973,0.19883555,877.07,876.35,0.72218011]
[1757282904171,0.19883555,877.07,876.36,0.72218011]
[1757282904473,0.19883555,877.07,876.37,0.72218011]
[1757282904671,0.19883555,877.07,876.38,0.72218011]
[1757282904970,0.19883555,877.07,876.39,0.72218011]
[1757282905171,0.19883555,877.07,876.4,0.72218011]
[1757282905371,0.19883555,877.07,876.41,0.72218011]
[1757282905572,0.19883555,877.07,876.42,0.72218011]
[1757282905772,0.19883555,877.07,876.43,0.72218011]
[1757282906073,0.19883555,877.07,876.44,0.72218011]
[1757282906271,0.19883555,877.07,876.45,0.72218011]
[1757282906474,0.19883555,877.07,875.89,2.5692586]
[1757282906475,0.19883555,877.07,876.46,0.72218011]
[1757282906672,0.19883555,877.07,876.47,0.72218011]
[1757282906876,0.19883555,877.07,876.48,0.72218011]
[1757282907076,0.19883555,877.07,876.49,0.72218011]
[1757282907276,0.19883555,877.07,876.5,0.72218011]
[1757282907579,0.19883555,877.07,876.51,0.72218011]
[1757282907776,0.19883555,877.07,876.52,0.72218011]
[1757282908076,0.19883555,877.07,876.53,0.72218011]
[1757282908673,0.19883555,877.07,875.89,2.5692586]
[1757282908874,0.19883555,877.07,875.9,0.72132084]
[1757282909177,0.19883555,877.07,875.89,2.5692586]
[1757282909477,0.19883555,877.07,876.62,1.0254917]
[1757282910573,0.19883555,877.07,876.62,0.8254917]
[1757282914978,0.19883555,877.07,876.62,2.3636116]
[1757282918482,1.0251039,877.9,876.62,2.3636116]
[1757282919182,0.19866019,877.59,876.62,2.3636116]
[1757282931593,0.19866019,877.59,876.62,3.13362113]
[1757282948208,0.19866019,877.59,876.7,3.13362113]
[1757282950010,0.19866019,877.59,876.7,2.93362113]
[1757282973528,0.19866019,877.59,876.73,0.8254917]
[1757282974430,0.19866019,877.59,876.73,0.6306917]
[1757282983638,0.19866019,877.59,876.73,2.1688116]
[1757282991756,0.19866019,877.59,876.74,0.73457277]
[1757282991956,0.19866019,877.59,876.77,1.5381199]
[1757282992256,0.19866019,877.59,876.78,0.54017277]
[1757282992456,0.19866019,877.59,876.76,1.5381199]
[1757282992658,0.19866019,877.59,876.77,1.5381199]
[1757282992856,0.19866019,877.59,876.76,1.5381199]
[1757282993153,0.19866019,877.59,876.77,1.5381199]
[1757282994258,0.19866019,877.59,876.85,1.5381199]
[1757282995659,0.19866019,877.59,876.85,1.3436199]
[1757282999463,0.19866019,877.59,876.13,2.5692586]
[1757282999659,0.19866019,877.59,876.14,2.5692586]
[1757283000261,0.19866019,877.59,876.32,2.5692586]
[1757283000758,0.19866019,877.59,876.27,2.5692586]
[1757283001264,0.19866019,877.59,876.23,2.5692586]
[1757283001756,0.19866019,877.59,876.3,2.5692586]
[1757283002362,0.19866019,877.59,876.23,2.5692586]
[1757283002762,0.19866019,877.59,876.16,2.5692586]
[1757283003269,0.19866019,877.59,876.15,2.5692586]
[1757283003962,0.19866019,877.59,876.13,2.5692586]
[1757283004262,0.19866019,877.59,876.14,0.7292958]
[1757283004467,0.19866019,877.59,876.93,1.0261961]
[1757283008870,0.19866019,877.59,876.95,1.0261961]
[1757283009771,0.19866019,877.59,876.95,0.8261961]
[1757283010071,0.19866019,877.59,876.95,1.59547445]
[1757283015678,0.19866019,877.59,876.95,3.13326815]
[1757283019679,0.19866019,877.59,877.02,0.76927835]
[1757283020680,0.19866019,877.59,877.02,0.57037835]
[1757283028682,0.19866019,877.59,877.03,0.72324779]
[1757283028888,0.19866019,877.59,877.04,0.72324779]
[1757283029086,0.19866019,877.59,877.05,0.72324779]
[1757283029284,0.19866019,877.59,877.06,0.72324779]
[1757283029584,0.19866019,877.59,876.01,2.5692586]
[1757283029789,0.19866019,877.59,876.31,2.5692586]
[1757283029989,0.19866019,877.59,876.32,0.72321455]
[1757283030186,0.19866019,877.59,876.33,0.72321455]
[1757283030387,0.19866019,877.59,876.34,0.72321455]
[1757283030583,0.19866019,877.59,876.35,0.72321455]
[1757283030784,0.19866019,877.59,876.36,0.72321455]
[1757283030984,0.19866019,877.59,876.37,0.72321455]
[1757283031187,0.19866019,877.59,876.38,0.72321455]
[1757283031387,0.19866019,877.59,876.39,0.72321455]
[1757283031585,0.19866019,877.59,876.4,0.72321455]
[1757283031790,0.19866019,877.59,876.41,0.72321455]
[1757283032085,0.19866019,877.59,876.42,0.72321455]
[1757283032286,0.19866019,877.59,876.43,0.72321455]
[1757283032488,0.19866019,877.59,876.44,0.72321455]
[1757283032687,0.19866019,877.59,876.45,0.72321455]
[1757283032991,0.19866019,877.59,876.46,0.72321455]
[1757283033287,0.19866019,877.59,876.47,0.72321455]
[1757283033491,0.19866019,877.59,876.48,0.72321455]
[1757283033692,0.19866019,877.59,876.32,2.5692586]
[1757283033892,0.19866019,877.59,876.33,0.72106193]
[1757283034087,0.19866019,877.59,876.37,2.5692586]
[1757283034395,0.19866019,877.59,876.38,0.72106193]
[1757283034590,0.19866019,877.59,876.39,0.72106193]
[1757283034787,0.19866019,877.59,876.4,0.72106193]
[1757283034991,0.19866019,877.59,876.41,0.72106193]
[1757283035286,0.19866019,877.59,876.01,3.5969621]
[1757283035287,0.19866019,877.59,876.44,2.5692586]
[1757283035490,0.19866019,877.59,876.45,0.72106193]
[1757283035788,0.19866019,877.59,876.46,0.72106193]
[1757283035989,0.19866019,877.59,876.47,0.72106193]
[1757283036187,0.19866019,877.59,876.48,0.72106193]
[1757283036392,0.19866019,877.59,876.49,0.72106193]
[1757283036689,0.19866019,877.59,876.5,0.72106193]
[1757283036888,0.19866019,877.59,876.51,0.72106193]
[1757283037092,0.19866019,877.59,876.52,0.72106193]
[1757283037289,0.19866019,877.59,876.53,0.72106193]
[1757283037489,0.19866019,877.59,876.54,0.72106193]
[1757283037792,0.19866019,877.59,876.55,0.72106193]
[1757283037988,0.19866019,877.59,876.56,0.72106193]
[1757283038289,0.19866019,877.59,876.57,0.72106193]
[1757283038493,0.19866019,877.59,876.58,0.72106193]
[1757283038691,0.19866019,877.59,876.59,0.72106193]
[1757283038894,0.19866019,877.59,876.6,0.72106193]
[1757283039093,0.19866019,877.59,876.61,0.72106193]
[1757283039293,0.19866019,877.59,876.62,0.72106193]
[1757283039493,0.19866019,877.59,876.63,0.72106193]
[1757283039692,0.19866019,877.59,877.11,1.0235401]
[1757283040791,0.19866019,877.59,877.11,0.8290401]
[1757283042706,0.19866019,877.59,876.33,2.5692586]
[1757283042904,0.19866019,877.59,876.56,2.5692586]
[1757283043497,0.19866019,877.59,876.5,2.5692586]
[1757283044399,0.19866019,877.59,876.51,2.5692586]
[1757283046101,0.19866019,877.59,876.48,2.5692586]
[1757283046603,0.19866019,877.59,876.49,2.5692586]
[1757283047004,0.19866019,877.59,876.29,2.5692586]
[1757283047604,0.19866019,877.59,876.3,2.5692586]
[1757283049105,0.19866019,877.59,876.31,2.5692586]
[1757283049606,0.19866019,877.59,877.02,1.5373427]
[1757283049803,0.19866019,877.59,876.96,1.5373427]
[1757283050204,0.19866019,877.59,876.97,1.5373427]
[1757283050909,0.19866019,877.59,876.98,1.5373427]
[1757283051206,0.19866019,877.59,876.99,1.5373427]
[1757283053105,0.19866019,877.59,877.0,1.5373427]
[1757283055809,0.19866019,877.59,877.01,1.5373427]
[1757283056913,0.19866019,877.59,877.01,1.3429427]
[1757283066212,0.19866019,877.59,876.28,2.5692586]
[1757283066213,0.19866019,877.59,875.9,3.5969621]
[1757283066412,0.19866019,877.59,875.85,2.5692586]
[1757283066812,0.19866019,877.59,875.84,2.5692586]
[1757283067812,0.19866019,877.59,875.82,2.5692586]
[1757283068318,0.19866019,877.59,875.81,2.5692586]
[1757283068817,0.19866019,877.59,875.78,2.5692586]
[1757283070817,0.19866019,877.59,876.93,1.0267487]
[1757283072318,0.19866019,877.59,876.93,0.8322487]
[1757283077021,0.19866019,877.59,876.93,2.3721905]
[1757283080527,0.19866019,877.59,876.93,3.14208895]
[1757283081032,0.19866019,877.59,876.92,2.30984025]
[1757283081530,0.19866019,877.59,876.92,2.11534025]
[1757283089231,0.19866019,877.59,876.92,0.76989845]
[1757283099044,0.19866019,877.59,876.91,0.76989845]
[1757283099248,0.19866019,877.59,876.89,0.76989845]
[1757283099445,0.19866019,877.59,875.94,3.5969621]
[1757283099446,0.19866019,877.59,876.86,0.76989845]
[1757283099650,0.19866019,877.59,876.86,0.57549845]
[1757283102348,0.19866019,877.59,876.86,1.60253255]
[1757283108951,0.19866019,877.59,876.86,3.14300455]
[1757283109655,0.19866019,877.59,876.89,2.5675061]
[1757283110859,0.19866019,877.59,876.89,2.3730061]
[1757283111455,0.19866019,877.59,876.91,1.540472]
[1757283119161,1.0246929,878.14,876.91,1.540472]
[1757283119365,0.198595,877.43,876.91,1.540472]
[1757283119565,1.0246929,878.12,876.91,1.540472]
[1757283119865,0.19859613,877.31,876.91,1.540472]
[1757283120066,1.0246929,878.12,876.91,1.540472]
[1757283121067,1.0246929,878.05,876.91,1.540472]
[1757283121265,0.19859613,877.82,876.91,1.540472]
[1757283129277,0.19859613,877.82,876.91,1.345972]
[1757283140976,0.19859613,877.82,876.91,2.373859]
[1757283159794,0.19859613,877.82,876.91,3.14511134]
[1757283171201,0.19859613,877.82,876.91,1.71537435]
[1757283192321,0.19859613,877.82,876.87,0.77125234]
[1757283192526,0.19859613,877.82,876.86,0.77125234]
[1757283192723,0.19859613,877.82,876.81,0.77125234]
[1757283192922,0.19859613,877.82,876.81,0.57685234]
[1757283201232,0.19859613,877.82,876.81,1.60464654]
[1757283202129,0.19859613,877.82,876.81,3.14686994]
[1757283205930,0.19859613,877.82,876.81,2.95236994]
[1757283210437,1.02813311,878.01,876.77,2.5700176]
[1757283210642,1.02813311,878.0,876.77,2.5700176]
[1757283212138,1.02813311,878.01,876.77,2.5700176]
[1757283212834,1.02813311,877.97,876.68,2.5700176]
[1757283213335,0.19865281,877.65,876.68,2.3755176]
[1757283231648,0.19865281,877.65,876.7,1.0277942]
[1757283233349,0.19865281,877.65,876.7,2.56644094]
[1757283247775,0.19865281,877.65,876.71,2.56644094]
[1757283248677,0.19865281,877.65,876.71,2.37204094]
[1757283256583,0.19865281,877.65,876.7,1.0277942]
[1757283268694,0.19865281,877.65,876.7,2.56990105]
[1757283269896,0.19865281,877.65,876.71,2.56990105]
[1757283270392,0.19865281,877.65,876.71,3.34118661]
[1757283272202,0.19865281,877.65,876.71,1.79907976]
[1757283282007,0.19865281,877.65,876.71,3.34118661]
[1757283299732,0.19865281,877.65,876.76,1.79907976]
[1757283299932,0.19865281,877.65,876.77,1.79907976]
[1757283300435,0.19865281,877.65,876.82,1.79907976]
[1757283301234,0.19865281,877.65,876.82,3.34118661]
[1757283301433,0.19865281,877.65,876.89,3.34118661]
[1757283323449,0.19865281,877.65,876.97,0.77128556]
[1757283328751,1.5377656,878.82,876.95,1.0277942]
[1757283328952,1.5377656,878.81,876.81,0.57272739]
[1757283331054,1.5377656,878.81,876.79,1.0277942]
[1757283331252,1.5377656,878.81,876.8,0.73559971]
[1757283331454,1.5377656,878.8,876.81,0.73559971]
[1757283331653,1.5377656,878.8,876.78,1.0277942]
[1757283331853,0.19857687,878.31,876.79,0.73575226]
[1757283332053,0.19857687,878.31,876.81,1.0277942]
[1757283338664,0.19857687,878.31,876.81,2.56990105]
[1757283344068,1.5377656,878.3,876.81,2.56990105]
[1757283345469,1.5377656,878.29,876.81,2.56990105]
[1757283346170,1.5377656,878.28,876.81,2.56990105]
[1757283347871,1.5377656,878.27,876.81,2.56990105]
[1757283348066,1.5377656,878.24,876.81,2.56990105]
[1757283348871,1.5377656,878.23,876.81,2.56990105]
[1757283349770,1.5377656,878.2,876.81,2.56990105]
[1757283350172,1.5377656,878.21,876.81,2.56990105]
[1757283350372,1.5377656,878.2,876.81,2.56990105]
[1757283351472,1.5377656,878.21,876.81,2.56990105]
[1757283351668,1.5377656,878.22,876.81,2.56990105]
[1757283352172,1.5377656,878.21,876.81,2.56990105]
[1757283353973,1.5377656,878.2,876.81,2.56990105]
[1757283354975,1.5377656,878.19,876.81,2.56990105]
[1757283356176,1.5377656,878.18,876.81,2.56990105]
[1757283357277,1.5377656,878.17,876.81,2.56990105]
[1757283359277,1.5377656,878.16,876.81,2.56990105]
[1757283373490,1.5377656,878.17,876.82,3.30447888]
[1757283373687,1.5377656,878.17,876.82,2.56990105]
[1757283382302,1.5377656,878.16,876.82,2.56990105]